lending/lending_fUSD_20241113
["ID","MTS","AMOUNT","RATE_DAILY","PERIOD"]
[342133902,1731498640866,-409.03733942,0.00011032,2]
[342133903,1731498640876,-1000.0,0.00011084,2]
[342133904,1731498640886,-166.84,0.00011094,2]
[342133905,1731498640895,-327.88,0.00011228,2]
[342133906,1731498640905,-409.03733944,0.00011429,2]
[342133907,1731498640915,-150.01226342,0.000115,5]
[342133908,1731498640924,-1731.77,0.00011507,2]
[342133909,1731498640933,-1500.37878878,0.00011522,2]
[342133910,1731498640942,-500.34081253,0.00011522,2]
[342133911,1731498640952,-1500.0,0.00011522,2]
[342133912,1731498640962,-166.84,0.00011557,2]
[342133913,1731498640971,-209.92,0.00011587,2]
[342133914,1731498640981,-262.2,0.00011677,2]
[342133915,1731498640990,-182.22701553,0.000119,2]
[342133916,1731498641000,-1450.0,0.00012,2]
[342133917,1731498641013,-166.84,0.00012019,2]
[342133918,1731498641023,-274.14,0.00012033,2]
[342133919,1731498641032,-1731.77,0.00012055,2]
[342133920,1731498641047,-1212.91,0.00012055,2]
[342133921,1731498641056,-587.0,0.00012066,2]
[342133922,1731498641066,-433.0,0.00012075,2]
[342133923,1731498641075,-1000.0,0.00012193,2]
[342133924,1731498641086,-43553.63,0.00012329,2]
[342133925,1731498641096,-150.0,0.00012362,2]
[342133926,1731498641105,-7293.45302898,0.00012362,2]
[342133927,1731498641117,-274.14,0.00012458,2]
[342133928,1731498641126,-327.88,0.00012476,2]
[342133929,1731498641136,-166.84,0.00012481,2]
[342133930,1731498641145,-3192.38,0.00012546,2]
[342133931,1731498641154,-1731.77,0.00012603,2]
[342133932,1731498641163,-602.76,0.00012678,2]
[342133933,1731498641173,-2000.0,0.0001282,2]
[342133934,1731498641182,-60911.10278078,0.00012869,2]
[342133935,1731498641191,-250.0,0.00012877,2]
[342133936,1731498641201,-274.14,0.00012884,2]
[342133937,1731498641211,-1775.2352838,0.0001289,2]
[342133938,1731498641221,-5262.91319665,0.000129,2]
[342133939,1731498641231,-7608.92510391,0.000129,2]
[342133940,1731498641240,-7608.92510387,0.000129,2]
[342133941,1731498641250,-7608.92510387,0.000129,2]
[342133942,1731498641261,-7608.92510387,0.000129,2]
[342133943,1731498641270,-7608.92510387,0.000129,2]
[342133944,1731498641280,-7608.92510387,0.000129,2]
[342133945,1731498641289,-262.2,0.00012974,2]
[342133946,1731498641298,-151.72,0.00012994,2]
[342133947,1731498641308,-1092621.27710458,0.00013,2]
[342133949,1731498642982,-166316.11554415,0.00013,2]
[342133958,1731498644484,-3206.06059895,0.00013,2]
[342133959,1731498644710,-1903.23123768,0.00013,2]
[342133960,1731498644789,-438.43,0.00013,2]
[342133961,1731498644901,-6990.87200825,0.00013,2]
[342133962,1731498644913,-281239.57947773,0.00013,2]
[342133963,1731498644924,-838.68893181,0.00013,2]
[342133964,1731498644935,-2932.53383124,0.00013,2]
[342133965,1731498644969,-815.86631128,0.00013,2]
[342133973,1731498647324,-804.99791026,0.00013,2]
[342133974,1731498647335,-446.60000232,0.00013,2]
[342133975,1731498647553,-36890.38962636,0.00013,2]
[342133976,1731498647591,-89247.96842827,0.00013,2]
[342133977,1731498647603,-1712.17583709,0.00013,2]
[342133978,1731498647732,-2550.49089855,0.00013,2]
[342133979,1731498647744,-701.92147519,0.00013,2]
[342133980,1731498649826,-6543.72268004,0.00013,2]
[342133981,1731498649967,-38635.34795523,0.00013,2]
[342133982,1731498650005,-280310.75625574,0.00013,2]
[342133983,1731498650017,-8506.59662801,0.00013,2]
[342133984,1731498650028,-3151.08700003,0.00013,2]
[342133985,1731498671167,300.0,0.00014999,120]
[342133986,1731498731498,300.0,0.00014999,120]
[342133987,1731498731705,300.0,0.00014999,120]
[342133988,1731498731817,300.0,0.00014999,120]
[342133989,1731498731922,300.0,0.00014999,120]
[342133990,1731498732031,300.0,0.00014999,120]
[342133991,1731498732130,300.0,0.00014999,120]
[342133992,1731498732242,300.0,0.00014999,120]
[342133993,1731498732332,300.0,0.00014999,120]
[342133994,1731498732757,300.0,0.00014999,120]
[342133995,1731498732859,300.0,0.00014999,120]
[342133996,1731498733031,300.0,0.00014999,120]
[342133997,1731498733419,300.0,0.00014999,120]
[342133998,1731498733560,293.82348921,0.00014999,120]
[342133999,1731498817417,-150.0,8.219e-05,2]
[342134000,1731498818610,-6.63,8.219e-05,2]
[342134001,1731498831769,500.0,0.00021,30]
[342134003,1731498876961,221.92,0.00021,30]
[342134004,1731498887787,221.92,0.00021,30]
[342134005,1731498903666,162.0,0.00021,30]
[342134006,1731499052247,1930.42994683,0.00021,30]
[342134008,1731499105323,151.46,0.00016493,15]
[342134013,1731499404225,500.0,0.00021,30]
[342134014,1731499447965,409.9738333,0.00021,30]
[342134015,1731499503296,162.0,0.00021,30]
[342134019,1731499616472,-1623.01241293,8.481e-05,2]
[342134020,1731499647102,-1000.46758707,8.481e-05,2]
[342134021,1731499647123,-9550.60810367,9.178e-05,2]
[342134022,1731499647145,-3216.01205288,9.178e-05,2]
[342134023,1731499647165,-26256.285848,9.178e-05,2]
[342134024,1731499647187,-500.0,9.274e-05,2]
[342134025,1731499647208,-500.0,9.274e-05,2]
[342134026,1731499647229,-500.0,9.274e-05,2]
[342134027,1731499647250,-150.0,9.274e-05,2]
[342134028,1731499647271,-164.05,9.275e-05,2]
[342134029,1731499647291,-5604.84,9.275e-05,2]
[342134030,1731499647317,-2726.86,9.275e-05,2]
[342134031,1731499647344,-2000.0,9.275e-05,2]
[342134032,1731499647366,-500.0,9.275e-05,2]
[342134033,1731499647387,-1712.94,9.275e-05,2]
[342134034,1731499647410,-4477.56,9.275e-05,2]
[342134035,1731499647430,-3556.93,9.349e-05,2]
[342134036,1731499647455,-250.0,9.955e-05,2]
[342134037,1731499647476,-3548.48,9.979e-05,2]
[342134038,1731499647501,-16551.14875425,0.00010119,2]
[342134051,1731499803664,164.0,0.00021,30]
[342134062,1731499832359,-300.0,9.274e-05,2]
[342134063,1731499832368,-4778.44,9.275e-05,2]
[342134064,1731499832384,-1260.06,9.275e-05,2]
[342134065,1731499832393,-200.0,9.275e-05,2]
[342134066,1731499832404,-482.7,9.275e-05,2]
[342134067,1731499832524,-1144.92,9.275e-05,2]
[342134068,1731499832534,-2182.95,9.275e-05,2]
[342134069,1731499832543,-2761.08,9.349e-05,2]
[342134070,1731499832552,-3724.77,9.349e-05,2]
[342134071,1731499832561,-944.76098682,9.974e-05,2]
[342134072,1731499832854,-649.32687009,9.974e-05,2]
[342134153,1731499839623,-879.97214309,9.974e-05,2]
[342134154,1731499839632,-1247.15,9.983e-05,2]
[342134156,1731499839641,-1117.64777998,0.00010113,2]
[342134159,1731499839652,-2261.14920989,0.00010113,2]
[342134161,1731499839663,-417.75551658,0.00010113,2]
[342134167,1731499839707,-37675.61749355,0.00010113,2]
[342134168,1731499839717,-7348.85124575,0.00010119,2]
[342134170,1731499839726,-1000.0,0.00010148,2]
[342134172,1731499839735,-236.04,0.00010164,2]
[342134174,1731499839745,-12967.36,0.00010169,2]
[342134176,1731499839754,-2378.59811451,0.0001019,2]
[342134178,1731499839763,-11354.21,0.000102,2]
[342134180,1731499839773,-420.0,0.00010201,2]
[342134182,1731499839782,-2831.67,0.00010378,2]
[342134184,1731499839792,-150.0,0.00010385,2]
[342134186,1731499839801,-9748.5,0.00010386,2]
[342134188,1731499839810,-4949.76,0.00010386,2]
[342134190,1731499839819,-210.18,0.00010386,2]
[342134192,1731499839828,-250.0,0.00010399,2]
[342134194,1731499839838,-23710.4,0.00010399,2]
[342134196,1731499839848,-1852.42,0.00010399,2]
[342134199,1731499839857,-1698.93,0.00010399,2]
[342134200,1731499839866,-150.99,0.00010399,2]
[342134203,1731499839875,-9999.99,0.00010399,2]
[342134204,1731499839885,-166.84,0.00010434,2]
[342134206,1731499839894,-358.37,0.00010543,2]
[342134208,1731499839903,-7056.89,0.00010661,2]
[342134210,1731499839912,-6774.58,0.00010705,2]
[342134212,1731499839921,-2623.48,0.00010745,2]
[342134214,1731499839931,-28350.0601597,0.00010899,2]
[342134216,1731499839940,-1375.0,0.00010958,2]
[342134218,1731499839950,-811.34,0.00010959,2]
[342134220,1731499839959,-150.0,0.00010959,2]
[342134222,1731499839969,-2795.1,0.00010959,2]
[342134224,1731499839978,-1500.0,0.00010959,2]
[342134226,1731499839987,-13908.72,0.00010959,2]
[342134228,1731499839996,-4922.28,0.00010959,2]
[342134230,1731499840006,-645.24,0.00010959,2]
[342134232,1731499840015,-537.7,0.00010959,2]
[342134234,1731499840023,-448.09,0.00010959,2]
[342134236,1731499840032,-373.4,0.00010959,2]
[342134238,1731499840041,-500.0,0.00011067,2]
[342134240,1731499840050,-501.95818514,0.00011067,2]
[342134242,1731499840060,-587.0,0.00011221,2]
[342134244,1731499840069,-1842.55,0.00011285,2]
[342134246,1731499840079,-1842.55,0.00011288,2]
[342134249,1731499840088,-1842.55,0.00011291,2]
[342134251,1731499840097,-1842.55,0.00011294,2]
[342134253,1731499840105,-1842.55,0.00011297,2]
[342134255,1731499840114,-1842.55,0.00011299,2]
[342134257,1731499840124,-1842.55,0.00011302,2]
[342134259,1731499840134,-1842.55,0.00011305,2]
[342134261,1731499840143,-28350.06015965,0.00011307,2]
[342134263,1731499840153,-1842.55,0.00011308,2]
[342134265,1731499840162,-1842.55,0.00011311,2]
[342134267,1731499840171,-1842.55,0.00011314,2]
[342134269,1731499840180,-1842.55,0.00011317,2]
[342134271,1731499840189,-1842.55,0.0001132,2]
[342134274,1731499840198,-1842.55,0.00011323,2]
[342134277,1731499840208,-1842.55,0.00011326,2]
[342134279,1731499840216,-1842.55,0.00011329,2]
[342134281,1731499840225,-1842.55,0.00011332,2]
[342134283,1731499840235,-1842.55,0.00011335,2]
[342134285,1731499840244,-1842.55,0.00011338,2]
[342134287,1731499840254,-1842.55,0.00011341,2]
[342134289,1731499840263,-1749.23,0.00011386,2]
[342134291,1731499840273,-255.0,0.00011403,2]
[342134293,1731499840282,-1000.0,0.00011416,2]
[342134295,1731499840291,-236.04,0.00011435,2]
[342134297,1731499840301,-2795.1,0.00011507,2]
[342134299,1731499840310,-1000.34081253,0.00011615,2]
[342134301,1731499840319,-250.0,0.00011704,2]
[342134303,1731499840329,-28350.06015965,0.00011756,2]
[342134305,1731499840338,-1000.0,0.000118,2]
[342134307,1731499840347,-1000.0,0.000118,3]
[342134309,1731499840357,-274.14,0.00012033,2]
[342134311,1731499840366,-30412.7,0.00012055,2]
[342134313,1731499840377,-2795.1,0.00012055,2]
[342134315,1731499840392,-7568.91,0.0001213,2]
[342134317,1731499840402,-432.53,0.00012137,2]
[342134319,1731499840411,-762.97,0.00012137,2]
[342134321,1731499840420,-432.63,0.00012137,2]
[342134323,1731499840431,-763.15,0.00012137,2]
[342134325,1731499840440,-166.84,0.00012173,2]
[342134327,1731499840455,-28350.06015965,0.00012205,2]
[342134329,1731499840464,-563.96,0.00012255,2]
[342134331,1731499840473,-197.56,0.00012283,2]
[342134333,1731499840483,-43553.63,0.00012329,2]
[342134335,1731499840492,-823.0,0.00012343,2]
[342134337,1731499840501,-150.0,0.00012362,2]
[342134338,1731499840510,-7293.45302898,0.00012362,2]
[342134341,1731499840520,-7633.6,0.00012428,2]
[342134342,1731499840529,-274.14,0.00012458,2]
[342134345,1731499840543,-7380.48,0.00012488,2]
[342134347,1731499840552,-433.0,0.00012525,2]
[342134349,1731499840561,-150.0,0.00012548,2]
[342134350,1731499840572,-433.11,0.00012548,2]
[342134352,1731499840581,-362.32,0.00012548,2]
[342134354,1731499840591,-150.0,0.00012548,2]
[342134356,1731499840600,-150.0,0.00012548,2]
[342134358,1731499840609,-150.0,0.00012548,2]
[342134361,1731499840619,-150.0,0.00012548,2]
[342134362,1731499840628,-447.12,0.00012548,2]
[342134364,1731499840638,-150.0,0.00012548,2]
[342134366,1731499840647,-150.0,0.00012548,2]
[342134369,1731499840657,-150.01226342,0.00012602,5]
[342134371,1731499840666,-2795.1,0.00012603,2]
[342134373,1731499840675,-9100.0,0.00012638,2]
[342134375,1731499840685,-9100.0,0.0001264,2]
[342134377,1731499840694,-28350.06015965,0.00012654,2]
[342134379,1731499840704,-409.0373394,0.00012667,2]
[342134381,1731499840713,-1000.0,0.00012685,2]
[342134383,1731499840722,-236.04,0.00012705,2]
[342134385,1731499840731,-1000.0,0.000128,4]
[342134387,1731499840740,-1000.0,0.000128,5]
[342134389,1731499840749,-700.0,0.000128,4]
[342134391,1731499840759,-7364.71,0.00012829,2]
[342134393,1731499840768,-3000.0,0.0001287,2]
[342134395,1731499840777,-61863.0,0.0001287,2]
[342134396,1731499840787,-250.0,0.00012877,2]
[342134398,1731499840796,-274.14,0.00012884,2]
[342134400,1731499840805,-366.2502181,0.0001289,2]
[342134402,1731499840815,-1000.0,0.00012899,2]
[342134405,1731499840824,-20771.801995,0.000129,2]
[342134406,1731499840834,-1400.0,0.000129,4]
[342134408,1731499840843,-2010.97425477,0.000129,2]
[342134410,1731499840851,-245.58326282,0.000129,2]
[342134412,1731499840861,-7622.77,0.00012923,2]
[342134414,1731499840870,-500.0,0.00012973,2]
[342134416,1731499840880,-500.0,0.00012973,2]
[342134418,1731499840889,-500.0,0.00012973,2]
[342134420,1731499840898,-150.01,0.00012999,2]
[342134422,1731499840908,-12020.11471367,0.00012999,2]
[342134424,1731499840917,-500.0,0.00012999,2]
[342134426,1731499840926,-500.0,0.00012999,2]
[342134428,1731499840936,-500.0,0.00012999,2]
[342134430,1731499840946,-506.46159752,0.00012999,2]
[342134432,1731499840974,-500.0,0.00012999,2]
[342134434,1731499840984,-500.0,0.00012999,2]
[342134436,1731499840994,-500.0,0.00012999,2]
[342134439,1731499841004,-500.0,0.00012999,2]
[342134441,1731499841014,-500.0,0.00012999,2]
[342134442,1731499841023,-167.09442616,0.00012999,2]
[342134444,1731499841033,-500.0,0.00012999,2]
[342134446,1731499841042,-351.78372561,0.00012999,2]
[342134447,1731499841051,-500.0,0.00012999,2]
[342134448,1731499841061,-500.0,0.00012999,2]
[342134449,1731499841071,-500.0,0.00012999,2]
[342134450,1731499841081,-500.0,0.00012999,2]
[342134451,1731499841091,-500.0,0.00012999,2]
[342134452,1731499841100,-500.0,0.00012999,2]
[342134453,1731499841110,-500.0,0.00012999,2]
[342134454,1731499841119,-500.0,0.00012999,2]
[342134455,1731499841128,-500.0,0.00012999,2]
[342134456,1731499841139,-500.0,0.00012999,2]
[342134458,1731499841148,-500.0,0.00012999,2]
[342134460,1731499841158,-500.0,0.00012999,2]
[342134462,1731499841168,-500.0,0.00012999,2]
[342134464,1731499841177,-432.64941463,0.00012999,2]
[342134466,1731499841187,-500.0,0.00012999,2]
[342134468,1731499841197,-500.0,0.00012999,2]
[342134470,1731499841206,-450.3106647,0.00012999,2]
[342134472,1731499841215,-500.0,0.00012999,2]
[342134474,1731499841224,-500.0,0.00012999,2]
[342134476,1731499841234,-500.0,0.00012999,2]
[342134478,1731499841243,-500.0,0.00012999,2]
[342134480,1731499841253,-500.0,0.00012999,2]
[342134482,1731499841262,-500.0,0.00012999,2]
[342134484,1731499841272,-500.0,0.00012999,2]
[342134486,1731499841281,-500.0,0.00012999,2]
[342134488,1731499841291,-500.0,0.00012999,2]
[342134490,1731499841301,-500.0,0.00012999,2]
[342134492,1731499841311,-500.0,0.00012999,2]
[342134494,1731499841321,-500.0,0.00012999,2]
[342134496,1731499841330,-500.0,0.00012999,2]
[342134498,1731499841340,-500.0,0.00012999,2]
[342134500,1731499841350,-500.0,0.00012999,2]
[342134502,1731499841359,-500.0,0.00012999,2]
[342134504,1731499841368,-500.0,0.00012999,2]
[342134506,1731499841380,-500.0,0.00012999,2]
[342134508,1731499841392,-500.0,0.00012999,2]
[342134510,1731499841401,-500.0,0.00012999,2]
[342134512,1731499841411,-500.0,0.00012999,2]
[342134514,1731499841420,-500.0,0.00012999,2]
[342134516,1731499841431,-500.0,0.00012999,2]
[342134518,1731499841440,-500.0,0.00012999,2]
[342134520,1731499841449,-500.0,0.00012999,2]
[342134522,1731499841460,-500.0,0.00012999,2]
[342134524,1731499841487,-292.51651954,0.00012999,2]
[342134526,1731499841497,-500.0,0.00012999,2]
[342134528,1731499841506,-500.0,0.00012999,2]
[342134530,1731499841515,-500.0,0.00012999,2]
[342134532,1731499841524,-500.0,0.00012999,2]
[342134534,1731499841533,-500.0,0.00012999,2]
[342134536,1731499841542,-500.0,0.00012999,2]
[342134538,1731499841553,-500.0,0.00012999,2]
[342134540,1731499841563,-500.0,0.00012999,2]
[342134542,1731499841572,-500.0,0.00012999,2]
[342134544,1731499841581,-500.0,0.00012999,2]
[342134546,1731499841591,-500.0,0.00012999,2]
[342134548,1731499841602,-500.0,0.00012999,2]
[342134550,1731499841611,-500.0,0.00012999,2]
[342134552,1731499841620,-500.0,0.00012999,2]
[342134554,1731499841630,-500.0,0.00012999,2]
[342134556,1731499841639,-500.0,0.00012999,2]
[342134558,1731499841649,-500.0,0.00012999,2]
[342134560,1731499841658,-500.0,0.00012999,2]
[342134562,1731499841667,-500.0,0.00012999,2]
[342134564,1731499841677,-500.0,0.00012999,2]
[342134566,1731499841686,-500.0,0.00012999,2]
[342134568,1731499841695,-300.0,0.00012999,2]
[342134570,1731499841705,-500.0,0.00012999,2]
[342134572,1731499841714,-7366.57,0.00013,2]
[342134574,1731499841724,-663225.27323588,0.00013,2]
[342134576,1731499841733,-1000.0,0.00013,2]
[342134578,1731499841743,-1000.0,0.00013,2]
[342134580,1731499841752,-1000.0,0.00013,2]
[342134582,1731499841761,-1000.0,0.00013,2]
[342134584,1731499841770,-1000.0,0.00013,2]
[342134586,1731499841779,-1000.0,0.00013,2]
[342134588,1731499841788,-1000.0,0.00013,2]
[342134590,1731499841798,-1000.0,0.00013,2]
[342134592,1731499841806,-1000.0,0.00013,2]
[342134594,1731499841816,-1000.0,0.00013,2]
[342134596,1731499841825,-1000.0,0.00013,2]
[342134598,1731499841834,-1000.0,0.00013,2]
[342134600,1731499841843,-1000.0,0.00013,2]
[342134602,1731499841853,-1000.0,0.00013,2]
[342134604,1731499841862,-1000.0,0.00013,2]
[342134606,1731499841871,-1000.0,0.00013,2]
[342134608,1731499841880,-1000.0,0.00013,2]
[342134610,1731499841890,-1000.0,0.00013,2]
[342134612,1731499841899,-1000.0,0.00013,2]
[342134614,1731499841908,-1000.0,0.00013,2]
[342134616,1731499841917,-1000.0,0.00013,2]
[342134618,1731499841926,-1000.0,0.00013,2]
[342134620,1731499841936,-1000.0,0.00013,2]
[342134622,1731499841945,-1000.0,0.00013,2]
[342134624,1731499841954,-1000.0,0.00013,2]
[342134626,1731499841967,-1000.0,0.00013,2]
[342134628,1731499841977,-1000.0,0.00013,2]
[342134631,1731499841991,-1000.0,0.00013,2]
[342134632,1731499842001,-1000.0,0.00013,2]
[342134635,1731499842010,-1000.0,0.00013,2]
[342134637,1731499842019,-1000.0,0.00013,2]
[342134665,1731499842029,-1000.0,0.00013,2]
[342134671,1731499842329,-1000.0,0.00013,2]
[342134673,1731499842338,-571.49511305,0.00013,2]
[342134674,1731499842347,-2623.48,0.00013009,2]
[342134676,1731499842357,-763.15,0.00013096,2]
[342134679,1731499842370,-432.63,0.00013096,2]
[342134681,1731499842381,-432.33,0.00013096,2]
[342134683,1731499842393,-763.15,0.00013096,2]
[342134685,1731499842402,-763.15,0.00013096,2]
[342134687,1731499842412,-763.15,0.00013096,2]
[342134689,1731499842423,-763.15,0.00013096,2]
[342134691,1731499842433,-763.15,0.00013096,2]
[342134693,1731499842442,-763.15,0.00013096,2]
[342134695,1731499842451,-763.15,0.00013096,2]
[342134697,1731499842461,-756.33,0.00013096,2]
[342134699,1731499842483,-1107.67,0.00013096,2]
[342134701,1731499842492,-28350.06015965,0.00013102,2]
[342134703,1731499842501,-2795.1,0.00013151,2]
[342134705,1731499842510,-245.58326282,0.00013233,2]
[342134707,1731499842519,-274.14,0.0001331,2]
[342134709,1731499842528,-150.0,0.00013336,2]
[342134711,1731499842537,-150.0,0.0001337,2]
[342134713,1731499842547,-150.0,0.0001337,2]
[342134715,1731499842556,-150.0,0.0001337,2]
[342134717,1731499842566,-150.0,0.0001337,2]
[342134719,1731499842575,-433.16,0.0001337,2]
[342134721,1731499842584,-150.0,0.0001337,2]
[342134723,1731499842593,-150.0,0.0001337,2]
[342134725,1731499842602,-362.32,0.0001337,2]
[342134727,1731499842612,-433.16,0.0001337,2]
[342134729,1731499842621,-150.0,0.0001337,2]
[342134731,1731499842631,-150.0,0.0001337,2]
[342134733,1731499842640,-150.0,0.0001337,2]
[342134735,1731499842650,-150.0,0.0001337,2]
[342134737,1731499842661,-362.32,0.0001337,2]
[342134739,1731499842670,-433.16,0.0001337,2]
[342134741,1731499842679,-150.0,0.0001337,2]
[342134743,1731499842687,-150.0,0.0001337,2]
[342134745,1731499842697,-150.0,0.0001337,2]
[342134747,1731499842706,-150.0,0.0001337,2]
[342134749,1731499842725,-362.32,0.0001337,2]
[342134751,1731499842734,-150.0,0.0001337,2]
[342134753,1731499842743,-150.0,0.0001337,2]
[342134755,1731499842753,-150.0,0.0001337,2]
[342134757,1731499842764,-150.0,0.0001337,2]
[342134759,1731499842775,-150.0,0.0001337,2]
[342134760,1731499842784,-362.32,0.0001337,2]
[342134762,1731499842793,-433.16,0.0001337,2]
[342134765,1731499842803,-150.0,0.0001337,2]
[342134767,1731499842812,-150.0,0.0001337,2]
[342134768,1731499842822,-150.0,0.0001337,2]
[342134770,1731499842831,-150.0,0.0001337,2]
[342134772,1731499842840,-358.68,0.0001337,2]
[342134774,1731499842849,-362.32,0.0001337,2]
[342134777,1731499842859,-433.16,0.0001337,2]
[342134779,1731499842869,-309.73,0.0001337,2]
[342134781,1731499842879,-150.0,0.0001337,2]
[342134783,1731499842888,-433.16,0.0001337,2]
[342134784,1731499842897,-150.0,0.0001337,2]
[342134786,1731499842907,-362.32,0.0001337,2]
[342134789,1731499842916,-150.0,0.0001337,2]
[342134790,1731499842926,-433.16,0.0001337,2]
[342134793,1731499842935,-362.32,0.0001337,2]
[342134795,1731499842945,-150.0,0.0001337,2]
[342134797,1731499842955,-150.0,0.0001337,2]
[342134799,1731499842973,-433.16,0.0001337,2]
[342134801,1731499842985,-150.0,0.0001337,2]
[342134803,1731499842994,-362.32,0.0001337,2]
[342134805,1731499843004,-433.16,0.0001337,2]
[342134807,1731499843014,-362.32,0.0001337,2]
[342134809,1731499843023,-150.0,0.0001337,2]
[342134812,1731499843033,-305.56,0.0001337,2]
[342134815,1731499843043,-362.32,0.0001337,2]
[342134816,1731499843052,-433.16,0.0001337,2]
[342134818,1731499843061,-300.0,0.0001337,2]
[342134820,1731499843071,-433.16,0.0001337,2]
[342134822,1731499843080,-362.32,0.0001337,2]
[342134824,1731499843089,-433.16,0.0001337,2]
[342134826,1731499843099,-362.32,0.0001337,2]
[342134828,1731499843109,-433.16,0.0001337,2]
[342134830,1731499843119,-362.32,0.0001337,2]
[342134832,1731499843128,-433.16,0.0001337,2]
[342134834,1731499843138,-362.32,0.0001337,2]
[342134836,1731499843148,-362.32,0.0001337,2]
[342134837,1731499843159,-433.16,0.0001337,2]
[342134838,1731499843168,-433.16,0.0001337,2]
[342134839,1731499843178,-362.32,0.0001337,2]
[342134840,1731499843188,-432.08,0.0001337,2]
[342134841,1731499843198,-362.32,0.0001337,2]
[342134842,1731499843207,-362.32,0.0001337,2]
[342134843,1731499843225,-433.16,0.0001337,2]
[342134844,1731499843233,-362.32,0.0001337,2]
[342134846,1731499843243,-363.21,0.0001337,2]
[342134848,1731499843256,-3000.0,0.0001339,2]
[342134850,1731499843265,-3203.06,0.00013425,2]
[342134852,1731499843275,-1000.0,0.00013521,2]
[342134854,1731499843284,-614.12831935,0.00013521,2]
[342134856,1731499843293,-1000.0,0.00013521,2]
[342134858,1731499843302,-151.72,0.0001353,2]
[342134860,1731499843312,-28350.06015965,0.00013551,2]
[342134862,1731499843321,-245.58326282,0.00013566,2]
[342134864,1731499843331,-1152.0,0.00013578,2]
[342134866,1731499843341,-165.60200626,0.000136,2]
[342134868,1731499843350,-2200.0,0.000136,4]
[342134870,1731499843360,-800.0,0.00013699,2]
[342134872,1731499843370,-800.0,0.00013699,2]
[342134874,1731499843384,-800.0,0.00013699,2]
[342134876,1731499843397,-5980.58,0.00013699,2]
[342134878,1731499843407,-800.0,0.00013699,2]
[342134880,1731499843419,-200.0,0.00013699,2]
[342134882,1731499843428,-800.0,0.00013699,2]
[342134885,1731499843437,-300.0,0.00013699,2]
[342134887,1731499843447,-800.0,0.00013699,2]
[342134888,1731499843457,-800.0,0.00013699,2]
[342134891,1731499843476,-608.82,0.00013699,2]
[342134892,1731499843485,-164.37,0.00013699,2]
[342134894,1731499843494,-500.0,0.00013699,2]
[342134897,1731499843503,-500.23346199,0.00013699,2]
[342134899,1731499843513,-162.20340042,0.00013699,2]
[342134901,1731499843522,-500.0,0.00013699,2]
[342134903,1731499843532,-500.0,0.00013699,2]
[342134905,1731499843543,-526.15644608,0.00013699,2]
[342134907,1731499843553,-160.54780067,0.00013699,2]
[342134909,1731499843563,-500.0,0.00013699,2]
[342134911,1731499843572,-500.0,0.00013699,2]
[342134913,1731499843582,-500.0,0.00013699,2]
[342134915,1731499843594,-500.07177059,0.00013699,2]
[342134917,1731499843603,-221.86847883,0.00013699,2]
[342134919,1731499843613,-160.41068495,0.00013699,2]
[342134921,1731499843622,-500.15068619,0.00013699,2]
[342134923,1731499843632,-500.0,0.00013699,2]